bitfinex-derivatives/quotes_ETHF0:USTF0_20250730
["timestamp","ask_amount","ask_price","bid_price","bid_amount"]
[1753841439474,2.0554,3790.4,3790.3,2.5428]
[1753841439674,2.5305,3790.4,3790.3,2.5428]
[1753841439972,1.0156,3790.1,3790.0,3.07058]
[1753841440174,2.5305,3790.1,3790.0,3.07058]
[1753841440474,2.5305,3790.1,3790.0,7.81935757]
[1753841440669,2.5305,3790.1,3790.0,2.5428]
[1753841440969,2.0554,3790.1,3790.0,2.5428]
[1753841442272,2.0554,3790.4,3790.3,1.035]
[1753841442471,2.0554,3790.4,3790.3,2.5428]
[1753841442667,2.5305,3790.4,3790.3,2.5428]
[1753841447776,2.5305,3790.4,3790.3,3.07055]
[1753841448278,2.0554,3790.4,3790.3,3.07055]
[1753841448774,2.0554,3790.4,3790.3,2.5428]
[1753841449380,2.5305,3790.4,3790.3,2.5428]
[1753841449583,2.5305,3790.4,3790.3,0.7525]
[1753841449881,2.5305,3790.1,3790.0,2.5428]
[1753841450981,3.05827,3790.1,3790.0,1.4967]
[1753841451476,3.05827,3790.1,3790.0,1.9636]
[1753841451675,3.05827,3790.1,3790.0,2.5933]
[1753841453078,2.58317,3790.1,3790.0,2.5933]
[1753841454088,0.94367,3790.1,3790.0,2.5933]
[1753841454280,0.52777,3790.2,3790.1,2.5606]
[1753841454586,0.97244,3790.4,3790.2,2.5606]
[1753841454882,0.97244,3790.4,3790.3,2.5606]
[1753841454883,2.26054,3790.4,3790.3,2.5606]
[1753841455485,2.55264,3790.4,3790.3,2.5606]
[1753841456587,2.0249,3790.4,3790.3,2.5606]
[1753841456787,0.9724,3790.7,3790.3,1.53733]
[1753841456984,0.6946,3790.7,3790.6,2.5606]
[1753841457185,0.3954,3790.7,3790.6,2.5606]
[1753841457386,0.6946,3790.7,3790.6,2.5606]
[1753841457586,1.7328,3790.7,3790.6,2.5606]
[1753841457787,2.4625,3790.7,3790.6,2.5606]
[1753841457988,2.4625,3790.3,3790.2,1.5155]
[1753841458186,2.4625,3790.3,3790.2,2.5606]
[1753841459183,2.1079,3790.7,3790.6,1.464]
[1753841459387,2.9902,3790.7,3790.6,2.5606]
[1753841462802,2.55265,3790.3,3790.2,0.7524]
[1753841463003,0.9867,3790.3,3790.2,0.298]
[1753841463202,2.4625,3790.3,3790.2,1.9309]
[1753841463399,2.4625,3790.3,3790.2,2.5606]
[1753841464297,2.4625,3790.3,3790.2,1.9309]
[1753841464702,2.4625,3790.3,3790.2,2.5606]
[1753841465707,2.4625,3790.3,3790.2,1.9309]
[1753841465905,0.52771,3790.6,3790.3,1.551]
[1753841466110,2.99021,3790.6,3790.5,2.5606]
[1753841466913,2.99021,3790.6,3790.5,1.9309]
[1753841467408,0.52767,3790.9,3790.5,2.1062]
[1753841467604,0.96527,3790.9,3790.6,0.52769]
[1753841467807,2.10787,3790.9,3790.8,2.1062]
[1753841468003,2.10787,3790.9,3790.8,2.5606]
[1753841468308,0.52755,3791.7,3791.3,1.5155]
[1753841468612,1.3926853,3791.8,3791.7,1.0966]
[1753841468613,0.81964,3791.8,3791.7,1.0966]
[1753841468808,1.76502059,3791.8,3791.7,2.5606]
[1753841469006,3.24082059,3791.8,3791.7,2.5606]
[1753841469206,0.77832059,3791.8,3791.7,2.5606]
[1753841469707,1.17372059,3791.8,3791.7,2.5606]
[1753841469913,2.06642059,3791.8,3791.7,2.5606]
[1753841470810,2.10769,3792.2,3792.1,1.0096]
[1753841471009,2.29188701,3792.2,3792.1,2.5606]
[1753841471215,2.35789701,3792.2,3792.1,2.5606]
[1753841471515,3.24019701,3792.2,3792.1,2.5606]
[1753841472811,2.4625,3792.2,3792.1,1.9309]
[1753841473016,2.4625,3791.9,3791.8,0.298]
[1753841473216,2.0249,3791.9,3791.8,2.5606]
[1753841473415,0.54547,3792.3,3791.3,1.319]
[1753841473416,0.018,3792.3,3792.2,1.0096]
[1753841473611,0.018,3792.3,3792.2,3.08808]
[1753841475514,2.0429,3792.3,3792.2,3.08808]
[1753841476017,0.018,3792.3,3792.2,3.08808]
[1753841476216,0.018,3792.3,3792.2,8.3619939]
[1753841476813,0.52733,3793.3,3792.9,0.52737]
[1753841477016,0.9867,3793.1,3793.0,1.9309]
[1753841477220,2.4625,3793.1,3793.0,2.5606]
[1753841478118,2.4625,3793.1,3793.0,1.464]
[1753841478313,2.0249,3793.1,3793.0,2.5606]
[1753841478817,0.9867,3793.2,3793.1,3.08796]
[1753841479010,0.9867,3793.2,3793.1,2.63356]
[1753841479011,2.0249,3793.2,3793.1,2.63356]
[1753841479220,2.0249,3793.2,3793.1,2.5606]
[1753841481627,2.0249,3793.2,3793.1,2.5587]
[1753841483932,2.4858,3793.2,3793.1,2.5587]
[1753841484434,3.01314,3793.2,3793.1,2.5587]
[1753841484640,3.01314,3793.2,3793.1,1.464]
[1753841484932,1.0255,3793.0,3792.2,1.0181]
[1753841485138,0.3768,3792.3,3792.2,2.12668]
[1753841485329,1.1509,3792.5,3792.4,1.53785]
[1753841485530,1.9972,3792.5,3792.2,5.27266256]
[1753841485726,1.9972,3792.2,3792.1,0.6102]
[1753841486029,0.937,3792.2,3792.1,2.4935]
[1753841486433,0.3768,3792.2,3792.1,2.4935]
[1753841486927,0.52737,3793.0,3792.6,1.13761]
[1753841487134,1.9972,3793.0,3792.9,2.4935]
[1753841487435,2.4581,3793.0,3792.9,2.4935]
[1753841488634,2.4581,3793.0,3792.9,1.9047]
[1753841488830,2.4581,3793.0,3792.9,1.4397]
[1753841489029,2.4581,3793.0,3792.9,1.9047]
[1753841489627,1.4864,3793.8,3793.0,0.4293]
[1753841489832,1.437,3793.1,3793.0,2.4935]
[1753841490134,1.9972,3793.3,3793.2,3.02084]
[1753841492131,0.9717,3793.7,3793.6,2.4935]
[1753841492328,0.9717,3793.7,3793.2,5.27252356]
[1753841492329,0.2,3793.9,3793.8,1.4831]
[1753841492535,0.2,3793.9,3793.8,2.4935]
[1753841493131,0.52713,3794.8,3794.3,0.4293]
[1753841493435,1.49883,3794.8,3794.7,1.4397]
[1753841493738,1.12206,3794.6,3794.5,0.6102]
[1753841494036,1.21279,3794.4,3794.3,0.3066]
[1753841494237,1.49889,3794.4,3794.3,0.3066]
[1753841494540,2.4581,3794.4,3794.3,1.0395]
[1753841495132,1.9972,3794.4,3794.3,2.4935]
[1753841495438,2.4581,3794.7,3794.6,2.4935]
[1753841496230,1.9972,3794.7,3794.6,2.4935]
[1753841496432,1.9972,3794.7,3793.7,1.31818]
[1753841496433,1.1238,3795.0,3794.9,1.4397]
[1753841496640,1.4326,3795.0,3794.9,2.4935]
[1753841497036,2.4581,3795.0,3794.9,2.4935]
[1753841497235,0.52708,3795.1,3794.9,0.6102]
[1753841497435,2.4581,3795.0,3794.9,1.5045]
[1753841497637,1.2458,3794.4,3794.3,1.9047]
[1753841497840,2.4581,3794.4,3794.3,2.4935]
[1753841498044,1.9972,3794.4,3794.3,7.76366166]
[1753841498638,0.52719,3794.3,3794.0,0.95652]
[1753841498840,2.4581,3794.1,3794.0,3.02072]
[1753841499241,1.9972,3794.1,3794.0,3.02072]
[1753841500039,1.9972,3794.1,3794.0,2.4935]
[1753841500346,1.0558,3794.4,3794.3,1.0104]
[1753841500544,0.9717,3794.4,3794.3,3.02069]
[1753841501044,1.5319,3794.4,3794.3,3.02069]
[1753841501236,1.2231,3794.4,3794.3,3.02069]
[1753841501442,1.9972,3794.9,3794.8,2.4935]
[1753841501841,0.018,3795.3,3794.9,0.4293]
[1753841502053,1.5319,3795.1,3795.0,2.4935]
[1753841502256,0.018,3795.3,3795.1,1.53748]
[1753841502458,0.77337213,3795.2,3795.1,1.53748]
[1753841502751,0.018,3795.3,3795.1,6.80778053]
[1753841502951,0.018,3795.3,3795.2,2.4935]
[1753841503557,0.5602,3796.3,3795.8,1.0104]
[1753841503754,1.0255,3796.3,3795.8,3.02048]
[1753841504352,1.0255,3796.3,3795.8,8.2893921]
[1753841505652,1.437,3796.8,3796.7,1.0104]
[1753841505847,3.23032587,3796.8,3796.7,1.9047]
[1753841506458,2.30412587,3796.8,3796.7,1.4397]
[1753841506659,2.76942587,3796.8,3796.7,2.4935]
[1753841507460,3.23032587,3796.8,3796.7,2.4935]
[1753841507656,0.77222587,3796.8,3796.7,1.9047]
[1753841507851,0.5602,3797.1,3796.7,2.4935]
[1753841508055,1.9972,3797.1,3797.0,1.0104]
[1753841508354,2.30311027,3797.1,3797.0,2.4935]
[1753841508952,1.36611027,3797.1,3797.0,2.4935]
[1753841509162,0.77121027,3797.1,3797.0,2.4935]
[1753841509357,0.77121027,3797.1,3797.0,7.76074694]
[1753841509557,2.4581,3797.7,3797.6,1.9047]
[1753841509765,3.22832996,3797.7,3797.6,1.9047]
[1753841510057,3.22832763,3797.7,3797.6,1.9047]
[1753841510262,3.22832763,3797.7,3797.6,2.4935]
[1753841510448,0.77022763,3797.7,3797.6,1.9047]
[1753841510761,0.77022763,3797.7,3797.6,7.75991475]
[1753841512155,0.2,3797.9,3797.8,0.6709]
[1753841512351,2.91453781,3797.9,3797.8,0.5862]
[1753841512553,3.33193781,3797.9,3797.8,0.5862]
[1753841512758,0.9517,3797.6,3797.5,1.77714]
[1753841513063,1.1339,3797.9,3797.8,1.4024]
[1753841513263,1.90286623,3797.9,3797.8,2.414]
[1753841513463,3.33156623,3797.9,3797.8,2.414]
[1753841513861,2.91416623,3797.9,3797.8,2.414]
[1753841514459,2.1452,3797.9,3797.8,2.414]
[1753841515259,0.5799,3797.9,3797.8,7.68013741]
[1753841515666,0.2,3797.9,3797.8,7.68013741]
[1753841517062,0.2,3797.9,3797.8,8.20683741]
[1753841517766,0.5799,3797.9,3797.8,8.20683741]
[1753841518067,0.2,3797.9,3797.8,8.20683741]
[1753841518265,0.018,3798.3,3798.2,0.52665]
[1753841518458,0.018,3798.3,3798.2,2.414]
[1753841518761,0.3979,3798.3,3798.2,7.68013741]
[1753841518967,0.018,3798.3,3798.2,7.68013741]
[1753841519367,0.4174,3799.0,3798.7,2.94057]
[1753841519368,1.5057,3798.8,3798.7,2.94057]
[1753841519667,0.3799,3798.8,3798.7,2.94057]
[1753841519869,1.2112,3798.8,3798.7,2.94057]
[1753841520266,1.2112,3798.8,3798.7,2.414]
[1753841520662,1.5057,3798.8,3798.7,2.414]
[1753841520857,0.6572,3798.3,3798.2,1.0168]
[1753841521067,1.9452,3798.3,3798.2,2.414]
[1753841521263,1.9452,3798.3,3798.2,5.26488976]
[1753841521264,2.3626,3798.3,3798.2,5.26488976]
[1753841521462,2.3626,3798.3,3798.2,0.2853]
[1753841521762,0.9479853,3799.5,3798.2,0.2853]
[1753841521763,0.9935,3799.1,3799.0,2.414]
[1753841521967,1.97793379,3799.1,3799.0,2.414]
[1753841522357,1.0967,3799.4,3799.3,0.3856]
[1753841522561,2.7118738,3799.4,3799.3,2.414]
[1753841522860,2.88903,3799.8,3799.7,0.3009]
[1753841523063,3.12920063,3799.8,3799.7,1.4024]
[1753841523264,3.65564063,3799.8,3799.4,1.53807]
[1753841523465,0.2,3799.9,3799.5,0.7159]
[1753841523466,0.9517,3799.6,3799.5,0.7159]
[1753841523769,2.3626,3799.6,3799.5,2.414]
[1753841524265,2.3626,3799.6,3799.5,1.8501]
[1753841524472,0.9517,3799.5,3799.3,0.52649]
[1753841524767,1.2113,3799.9,3799.8,1.4645]
[1753841524970,1.2113,3799.9,3799.3,5.26378123]
[1753841524971,0.52644,3799.7,3799.3,5.26378123]
[1753841525162,1.8086,3799.3,3799.2,2.37661]
[1753841525457,2.3626,3799.7,3799.6,0.9718]
[1753841525661,2.3626,3799.7,3799.6,1.4024]
[1753841526066,0.9517,3799.4,3799.3,0.9718]
[1753841526269,2.3626,3799.4,3799.3,2.414]
[1753841526469,2.3626,3799.4,3799.3,1.4024]
[1753841527362,1.9231,3799.4,3798.3,0.8783]
[1753841527570,0.6572,3798.2,3798.1,2.94066]
[1753841527870,0.3799,3798.7,3798.6,0.9718]
[1753841528165,0.4395,3799.5,3799.1,0.52652]
[1753841528366,0.9517,3799.4,3799.3,2.414]
[1753841528764,0.2,3799.9,3799.6,1.8501]
[1753841528973,3.23758352,3799.8,3799.7,2.414]
[1753841529265,1.9452,3799.3,3799.2,2.94051]
[1753841529471,2.3626,3799.3,3799.2,2.414]
[1753841529675,2.3626,3799.3,3799.2,6.66645832]
[1753841529869,2.3626,3799.3,3799.2,1.4024]
[1753841530168,0.9517,3798.9,3798.8,2.414]
[1753841530472,0.9935,3798.2,3798.1,0.52666]
[1753841530772,0.554,3798.4,3798.2,1.96884]
[1753841530967,0.554,3798.4,3798.3,1.4422]
[1753841531170,0.4395,3799.2,3799.1,0.8783]
[1753841531367,1.4109,3799.8,3799.2,0.95711]
[1753841531676,0.9935,3799.4,3799.3,0.4306]
[1753841531872,1.76067236,3799.4,3799.3,1.4422]
[1753841532276,1.76126466,3799.4,3799.3,1.4422]
[1753841532475,0.76776466,3799.4,3799.3,6.70625832]
[1753841534075,0.76776466,3799.4,3799.3,7.67805832]
[1753841534271,0.9479853,3799.8,3799.3,6.70625832]
[1753841534477,0.9517,3799.6,3799.4,1.4422]
[1753841534775,0.9517,3799.6,3799.1,1.0116]
[1753841534984,0.9517,3799.6,3799.1,1.4422]
[1753841535169,1.4109,3799.5,3799.1,6.7060505]
[1753841535370,2.3626,3799.2,3799.1,1.54332]
[1753841536278,1.9452,3799.2,3799.1,2.94052]
[1753841537274,2.3626,3799.2,3799.1,2.94052]
[1753841537770,0.9479853,3799.8,3799.5,2.49277]
[1753841537968,0.9479853,3799.8,3799.7,2.94044]
[1753841538178,2.8931853,3799.8,3799.7,1.49824]
[1753841538380,2.8931853,3799.8,3799.7,6.7618827]
[1753841538880,0.9479853,3799.8,3799.7,8.2040827]
[1753841539578,1.1479853,3799.9,3799.8,2.414]
[1753841540377,1.14047262,3799.9,3799.8,7.67736565]
[1753841540677,2.1452,3799.9,3799.8,7.67736565]
[1753841540878,2.5626,3799.9,3799.8,7.67736565]
[1753841541081,2.5626,3799.9,3799.8,6.66576565]
[1753841541580,3.50357904,3799.9,3799.8,7.71866565]
[1753841542179,1.9916,3799.7,3799.6,0.95645]
[1753841542379,0.94097904,3799.8,3799.6,2.95715]
[1753841542577,0.2,3799.9,3799.8,2.95713]
[1753841542875,0.8589,3799.9,3799.8,2.95713]
[1753841543075,1.4669,3799.9,3799.8,2.95713]
[1753841543283,3.13257904,3799.9,3799.8,2.95713]
[1753841543580,2.1916,3799.9,3799.8,2.95713]
[1753841543791,0.2,3799.9,3799.8,8.22049565]
[1753841544572,0.94097904,3800.0,3799.8,13.22049565]
[1753841544884,1.42280202,3800.3,3800.2,2.95707]
[1753841545080,2.37220202,3800.6,3800.5,1.47413]
[1753841545282,2.37220202,3800.6,3800.5,2.95703]
[1753841545582,1.9916,3800.6,3800.5,2.52703]
[1753841545777,2.4483,3800.6,3800.5,2.52703]
[1753841546079,1.9916,3800.6,3800.5,2.95703]
[1753841546382,1.11976872,3800.6,3800.5,8.21942623]
[1753841546577,0.75096872,3800.6,3800.5,8.21942623]
[1753841548688,1.42280202,3801.1,3801.0,1.47406]
[1753841548884,2.39020202,3801.3,3801.2,1.47403]
[1753841549181,0.018,3801.3,3801.2,8.218634]
[1753841551684,0.2,3801.9,3801.8,0.52615]
[1753841551875,0.2,3801.9,3801.8,2.95685]
[1753841552080,1.1494,3801.9,3801.8,8.21827716]
[1753841552276,2.1916,3801.9,3801.8,8.21827716]
[1753841552676,0.2,3801.9,3801.8,8.21827716]
[1753841552882,37.906,3803.7,3802.4,2.95677]
[1753841552883,1.42280202,3802.8,3802.4,2.95677]
[1753841553086,0.52597,3803.1,3802.8,0.9478]
[1753841553087,3.41440202,3802.9,3802.8,0.9478]
[1753841553287,2.4483,3802.8,3802.7,0.2888]
[1753841553485,1.4989,3802.7,3802.5,0.52605]
[1753841553686,2.4483,3802.6,3802.5,0.52605]
[1753841553885,2.4483,3802.6,3802.5,6.07544681]
[1753841554085,2.4483,3802.6,3802.5,7.16444681]
[1753841554680,2.4483,3802.6,3802.5,5.26059681]
[1753841554887,1.7011,3802.5,3802.4,2.4307]
[1753841555082,0.6589,3802.5,3802.4,2.4307]
[1753841555287,0.3688,3802.5,3802.4,7.6903284]
[1753841555494,1.9916,3802.8,3802.7,2.4307]
[1753841556286,2.4483,3802.8,3802.7,2.4307]
[1753841557384,1.9916,3802.8,3802.7,2.4307]
[1753841557580,2.4483,3802.8,3802.7,1.3778]
[1753841557991,1.8403,3802.8,3802.7,2.4307]
[1753841558295,2.4483,3802.8,3802.7,7.69005178]
[1753841558590,1.9916,3802.8,3802.7,7.69005178]
[1753841558785,2.4483,3802.8,3802.7,7.69005178]
[1753841558981,0.2905,3802.5,3802.4,0.52607]
[1753841559186,0.9494,3802.5,3802.4,1.47387]
[1753841559491,2.4483,3802.5,3802.4,7.61912178]
[1753841559688,2.4483,3802.5,3802.4,6.07422178]
[1753841560090,2.4483,3802.5,3802.4,6.50422178]
[1753841560292,2.4483,3802.5,3802.4,5.25935178]
[1753841560492,0.9494,3802.8,3802.7,0.9478]
[1753841560692,0.9494,3802.8,3802.7,2.95673]
[1753841560891,2.4483,3802.8,3802.7,2.95673]
[1753841561593,2.4483,3802.8,3802.7,1.3778]
[1753841561987,1.4989,3803.8,3802.7,6.31225178]
[1753841562183,1.6228,3803.3,3803.2,0.9478]
[1753841562493,2.4483,3803.3,3803.2,1.3778]
[1753841562694,2.4483,3803.3,3803.2,1.8337]
[1753841562893,2.4483,3803.3,3803.2,0.5757]
[1753841563188,2.4483,3803.3,3803.2,0.2888]
[1753841564295,1.5574,3803.3,3803.2,2.4307]
[1753841564501,2.4483,3803.3,3803.2,2.4307]
[1753841564792,2.4483,3803.3,3803.2,1.3778]
[1753841565592,0.2,3803.9,3803.1,0.52596]
[1753841565889,0.7243,3803.5,3803.3,1.24283]
[1753841566095,2.4483,3803.4,3803.3,2.35963]
[1753841566695,2.4483,3803.4,3803.3,1.98753]
[1753841567095,2.4483,3803.4,3803.3,2.35963]
[1753841567391,2.4483,3803.4,3803.3,2.95663]
[1753841568099,2.4483,3803.4,3803.3,2.4307]
[1753841568299,2.4483,3803.4,3803.3,1.3778]
[1753841568494,2.4483,3803.4,3803.3,0.5757]
[1753841568700,1.4061,3803.4,3803.2,0.52595]
[1753841568891,1.47536,3803.2,3802.7,0.597]
[1753841569097,2.4483,3802.8,3802.7,1.3778]
[1753841569298,2.4483,3802.8,3802.7,6.63639122]
[1753841569604,1.2669,3803.2,3803.1,2.95666]
[1753841569796,0.8909,3803.4,3803.1,1.47376]
[1753841569797,0.4342,3803.4,3803.1,1.47376]
[1753841569998,1.9916,3803.3,3803.2,2.95666]
[1753841570190,1.9916,3803.3,3803.2,1.3778]
[1753841570191,2.4483,3803.3,3803.2,1.3778]
[1753841570397,2.4483,3803.3,3803.2,0.2888]
[1753841570598,2.4483,3803.3,3802.9,0.95599]
[1753841570792,0.9494,3803.2,3803.0,0.43]
[1753841570992,1.5574,3803.1,3802.9,6.31156035]
[1753841571198,1.9916,3803.0,3802.9,2.9567]
[1753841571392,1.9916,3803.0,3802.9,8.21556776]
[1753841571799,2.442,3803.0,3802.9,2.9567]
[1753841572000,1.9916,3803.0,3802.9,8.21556776]
[1753841572496,0.4504,3803.8,3803.0,1.0217]
[1753841572696,1.5831,3803.2,3803.1,2.97747]
[1753841573003,2.0026,3803.2,3803.1,2.97747]
[1753841573309,2.453,3803.2,3803.1,2.97747]
[1753841573498,0.9797,3803.2,3803.1,2.97747]
[1753841574002,0.9797,3803.2,3803.1,2.52747]
[1753841574200,0.3898,3803.2,3803.1,2.97747]
[1753841574395,0.2,3803.9,3803.1,1.4717]
[1753841574600,2.0026,3803.8,3803.7,0.9798]
[1753841574804,2.453,3803.8,3803.7,1.95568]
[1753841576498,2.453,3803.8,3803.7,2.42008]
[1753841577200,2.453,3803.8,3803.7,2.97738]
[1753841578098,1.3992,3803.8,3803.7,8.2353491]
[1753841578298,0.2,3803.9,3803.8,2.4515]
[1753841579504,0.018,3804.3,3804.2,2.97732]
[1753841579904,0.75313582,3804.3,3804.2,8.23515088]
[1753841580303,1.7039,3804.2,3804.1,0.3067]
[1753841580504,2.73773582,3804.2,3804.1,2.4515]
[1753841580898,3.18813582,3804.2,3804.1,2.4515]
[1753841581205,0.73513582,3804.2,3804.1,7.70877804]
[1753841581409,1.74453582,3804.2,3804.1,7.70877804]
[1753841581706,2.0206,3804.3,3804.2,2.4515]
[1753841581907,3.20675329,3804.3,3804.2,1.4298]
[1753841582402,3.20675329,3804.3,3804.2,1.41921018]
[1753841582604,3.20675329,3804.3,3804.2,0.58171018]
[1753841582804,2.453,3804.0,3803.0,5.25741624]
[1753841583103,2.453,3803.3,3803.2,2.52746]
[1753841583508,2.0026,3803.3,3803.2,2.97746]
[1753841583808,0.4504,3803.6,3803.2,2.97746]
[1753841584009,0.9797,3803.5,3803.4,1.50573]
[1753841584209,2.0026,3803.5,3803.4,0.9798]
[1753841584708,0.6885,3803.5,3803.4,7.70995296]
[1753841585011,2.0026,3803.8,3803.7,2.4515]
[1753841585706,0.9797,3803.3,3803.2,2.52746]
[1753841586010,0.3898,3803.3,3803.2,8.23584383]
[1753841586209,0.8699,3803.7,3803.6,2.5274]
[1753841586210,2.453,3803.7,3803.6,2.5274]
[1753841586414,2.453,3803.7,3803.6,2.9774]
[1753841586612,2.453,3803.7,3803.6,8.23606035]
[1753841586913,0.94534,3804.1,3803.6,8.23606035]
[1753841587115,2.0026,3803.8,3803.7,2.4515]
[1753841587410,0.52586,3803.9,3803.7,2.4515]
[1753841587616,2.453,3803.8,3803.7,1.4298]
[1753841587911,2.453,3803.8,3803.7,2.4515]
[1753841588110,2.0026,3804.1,3804.0,2.06295]
[1753841588313,2.0206,3804.3,3804.2,2.4515]
[1753841588809,2.453,3803.9,3803.8,2.4515]
[1753841589016,0.5899,3803.9,3803.8,2.4515]
[1753841589212,2.453,3804.2,3804.1,2.4515]
[1753841589512,2.453,3804.2,3804.1,0.7567]
[1753841589709,2.453,3804.2,3804.1,1.4298]
[1753841590214,2.453,3804.2,3804.1,2.4515]
[1753841590810,1.0229,3803.9,3803.0,5.25783088]
[1753841591011,1.0229,3803.9,3803.4,24.16543]
[1753841591012,2.0026,3803.5,3803.4,24.16543]
[1753841591210,2.453,3803.5,3803.4,5.25741624]
[1753841591412,1.4733,3803.4,3803.3,0.7567]
[1753841591614,0.9797,3803.4,3803.3,1.4298]
[1753841592013,2.453,3803.4,3803.3,1.9871]
[1753841592517,2.453,3803.4,3803.3,2.4515]
[1753841592711,2.0026,3803.0,3802.9,2.4515]
[1753841592911,2.0026,3803.0,3802.9,24.16549]
[1753841593813,2.453,3803.0,3802.9,2.4515]
[1753841594017,2.453,3803.0,3802.9,23.6335]
[1753841594705,0.4195,3803.2,3803.0,0.4644]
[1753841594912,2.0026,3803.1,3803.0,2.4515]
[1753841595517,1.8496,3803.5,3803.4,0.9798]
[1753841595715,1.8496,3803.5,3803.4,1.8942]
[1753841595914,0.4195,3803.9,3803.8,2.4515]
[1753841596119,0.2987,3804.0,3803.9,1.7784]
[1753841596319,0.2987,3804.0,3803.9,2.4515]
[1753841596724,2.453,3804.0,3803.9,1.4298]
[1753841596917,2.0026,3804.0,3803.9,2.4515]
[1753841597116,0.9797,3804.0,3803.9,7.70933088]
[1753841597815,2.97885,3804.0,3803.1,6.2957]
[1753841598016,0.9797,3804.0,3803.7,0.52588]
[1753841598219,0.54381,3804.3,3803.9,0.52586]
[1753841598426,2.471,3804.3,3804.2,2.4515]
[1753841599214,0.018,3804.3,3804.2,2.4515]
[1753841599421,0.018,3804.3,3804.2,7.70877804]
[1753841600113,1.6011,3804.3,3804.2,7.70877804]
[1753841600320,2.0206,3804.3,3804.2,7.70877804]
[1753841601221,1.6011,3804.3,3804.2,7.70877804]
[1753841601417,0.9977,3804.3,3804.2,7.70877804]
[1753841602919,1.9804,3804.3,3804.2,8.23459804]
[1753841603927,0.018,3804.3,3804.2,8.23459804]
[1753841604725,0.9827,3805.0,3804.2,7.70877804]
[1753841605030,1.942,3805.0,3804.9,2.98732]
[1753841605427,2.357,3805.0,3804.9,1.866]
[1753841605627,2.357,3805.0,3804.9,2.4616]
[1753841605824,1.942,3805.0,3804.9,7.7183944]
[1753841606025,1.942,3805.3,3805.2,0.9847]
[1753841606225,2.357,3805.3,3805.2,1.4161]
[1753841606426,2.357,3805.3,3805.2,0.6024]
[1753841606624,1.942,3805.3,3805.2,2.4616]
[1753841606826,1.942,3805.3,3805.2,7.71791085]
[1753841607133,0.9593,3805.3,3805.2,7.71791085]
[1753841607335,2.357,3805.8,3805.7,2.0117]
[1753841607528,2.357,3805.8,3805.7,1.4161]
[1753841608532,2.0104,3805.9,3805.8,0.7298]
[1753841608732,2.0104,3805.9,3805.8,1.0338]
[1753841608932,1.8104,3805.7,3805.6,5.55360593]
[1753841609132,0.6712,3805.7,3805.6,2.4616]
[1753841609332,0.6712,3805.7,3805.6,7.71694402]
[1753841609532,1.5059,3805.7,3805.6,7.71694402]
[1753841609735,2.357,3805.7,3805.6,7.71694402]
[1753841609936,1.5059,3805.7,3805.6,7.71694402]
[1753841610132,0.5688,3805.9,3805.8,0.6863]
[1753841610333,0.2,3805.9,3805.8,2.4616]
[1753841611530,0.2,3805.9,3805.8,7.71666785]
[1753841614030,1.942,3806.4,3806.3,0.9847]
[1753841614227,1.5059,3806.4,3806.3,2.98713]
[1753841614430,0.9593,3806.4,3806.3,8.24219785]
[1753841614633,2.357,3806.8,3806.7,1.94157]
[1753841615134,2.357,3806.8,3806.7,2.98707]
[1753841615330,0.9593,3806.8,3806.6,0.52548]
[1753841615536,2.357,3806.8,3806.7,5.25382544]
[1753841615735,0.9593,3806.8,3806.5,0.4314]
[1753841615938,2.357,3806.7,3806.6,1.4161]
[1753841616237,0.018,3807.3,3805.8,1.0455]
[1753841616238,0.6712,3806.3,3805.8,1.0455]
[1753841616430,1.942,3806.7,3806.6,2.98709]
[1753841616633,1.942,3806.7,3806.6,8.24105345]
[1753841616938,1.942,3806.7,3806.6,7.71556345]
[1753841617240,0.9593,3806.7,3806.6,8.24105345]
[1753841617740,0.018,3807.3,3807.2,0.9847]
[1753841617927,2.375,3807.3,3807.2,2.4616]
[1753841618328,2.375,3807.3,3807.2,1.4161]
[1753841618529,2.557,3807.9,3807.4,0.4314]
[1753841618735,0.6712,3807.4,3807.3,2.30069]
[1753841618930,1.942,3807.4,3807.3,0.52539]
[1753841619130,2.357,3807.4,3807.3,21.70439]
[1753841619333,2.357,3807.4,3807.3,22.00279]
[1753841619537,0.9593,3807.0,3806.9,2.39144]
[1753841619840,1.942,3807.0,3806.9,23.6396]
[1753841620235,2.357,3807.0,3806.9,22.6637]
[1753841620432,2.357,3806.9,3806.8,5.25299749]
[1753841620630,2.357,3806.7,3806.6,21.178]
[1753841620838,0.3688,3806.7,3806.6,23.044]
[1753841621040,1.942,3806.7,3806.6,28.89314942]
[1753841621536,2.357,3806.7,3806.6,28.89314942]
[1753841621734,1.3743,3807.0,3806.9,0.9847]
[1753841621938,0.9593,3807.0,3806.9,2.4616]
[1753841622236,0.5905,3807.3,3807.2,2.4616]
[1753841622439,0.3024,3807.7,3807.6,0.894]
[1753841622640,0.3024,3807.7,3807.6,1.5803]
[1753841622839,1.2266,3807.9,3807.8,0.9847]
[1753841623039,2.142,3807.9,3807.8,2.4616]
[1753841623237,1.1593,3807.9,3807.8,2.4616]
[1753841624043,1.1593,3807.9,3807.6,0.4314]
[1753841624340,0.8712,3807.9,3807.8,0.9847]
[1753841624536,0.89412,3807.8,3807.7,5.25230773]
[1753841624741,2.88232,3807.8,3807.7,5.25230773]
[1753841625143,2.88232,3807.8,3807.7,5.68370773]
[1753841625542,2.357,3807.8,3807.7,5.68370773]
[1753841625732,0.2,3807.9,3807.7,7.71390773]
[1753841625937,0.5024,3807.9,3807.8,2.4616]